[Event "*** Titled Tuesday 3|2 Blitz"]
[Site "Chess.com"]
[Date "2016.01.05"]
[Round "6"]
[White "Quiet_Desperation"]
[Black "kikydu96"]
[Result "0-1"]
[WhiteElo "2113"]
[BlackElo "2230"]
[TimeControl "180+2"]
[EndTime "12:12:23 PST"]
[Termination "kikydu96 won by resignation"]

1. e4 {[%clk 0:02:47.6]} 1... e5 {[%clk 0:03:00.4]} 2. Nf3 {[%clk 0:02:48.2]}
2... Nc6 {[%clk 0:03:00.8]} 3. Bb5 {[%clk 0:02:49.4]} 3... a6 {[%clk 0:03:01.5]}
4. Ba4 {[%clk 0:02:50.3]} 4... Nf6 {[%clk 0:03:02.8]} 5. d3 {[%clk 0:02:51.7]}
5... d6 {[%clk 0:03:02.5]} 6. c3 {[%clk 0:02:52.7]} 6... g6 {[%clk 0:03:03]} 7.
O-O {[%clk 0:02:47.2]} 7... Bg7 {[%clk 0:03:04.4]} 8. h3 {[%clk 0:02:47.8]} 8...
O-O {[%clk 0:03:05.8]} 9. Re1 {[%clk 0:02:48.6]} 9... b5 {[%clk 0:03:06]} 10.
Bc2 {[%clk 0:02:48.7]} 10... Bb7 {[%clk 0:03:06]} 11. Nbd2 {[%clk 0:02:50]}
11... Nb8 {[%clk 0:03:05.6]} 12. Nf1 {[%clk 0:02:42.6]} 12... Nbd7 {[%clk
0:03:04]} 13. Bd2 {[%clk 0:02:43.8]} 13... h6 {[%clk 0:02:55.8]} 14. Qc1 {[%clk
0:02:40]} 14... Kh7 {[%clk 0:02:56.2]} 15. a4 {[%clk 0:02:33.9]} 15... Nh5
{[%clk 0:02:54.9]} 16. Ng3 {[%clk 0:02:28.7]} 16... Nxg3 {[%clk 0:02:53]} 17.
fxg3 {[%clk 0:02:28.6]} 17... f5 {[%clk 0:02:45.1]} 18. exf5 {[%clk 0:02:25.7]}
18... gxf5 {[%clk 0:02:46]} 19. Nh4 {[%clk 0:02:23.1]} 19... Rf6 {[%clk
0:02:16.7]} 20. Rf1 {[%clk 0:02:20.7]} 20... Qf8 {[%clk 0:02:11.4]} 21. axb5
{[%clk 0:02:14.1]} 21... axb5 {[%clk 0:02:10.9]} 22. Rxa8 {[%clk 0:02:15.2]}
22... Bxa8 {[%clk 0:02:11.4]} 23. g4 {[%clk 0:02:16.8]} 23... fxg4 {[%clk
0:01:56.7]} 24. d4+ {[%clk 0:02:12.9]} 24... Kg8 {[%clk 0:01:57]} 25. Rxf6
{[%clk 0:02:09.5]} 25... Qxf6 {[%clk 0:01:57.2]} 26. Nf5 {[%clk 0:02:01.7]}
26... gxh3 {[%clk 0:01:57.9]} 27. Nxg7 {[%clk 0:02:02.4]} 27... Qxg7 {[%clk
0:01:56.9]} 28. Bb3+ {[%clk 0:01:58.8]} 28... Kh8 {[%clk 0:01:52.8]} 29. Qf1
{[%clk 0:01:57.1]} 29... Bxg2 {[%clk 0:01:51.1]} 30. Qf7 {[%clk 0:01:58.2]}
30... Qxf7 {[%clk 0:01:35.3]} 31. Bxf7 {[%clk 0:01:58.6]} 31... Kg7 {[%clk
0:01:36.8]} 32. Be6 {[%clk 0:01:56.5]} 32... Nf8 {[%clk 0:01:35.9]} 33. Bg4
{[%clk 0:01:52.3]} 33... exd4 {[%clk 0:01:36.4]} 34. cxd4 {[%clk 0:01:53.3]}
34... Ng6 {[%clk 0:01:36.2]} 35. Ba5 {[%clk 0:01:50.5]} 35... c6 {[%clk
0:01:33]} 36. Kh2 {[%clk 0:01:40.8]} 36... c5 {[%clk 0:01:33.7]} 37. dxc5 {[%clk
0:01:37.5]} 37... dxc5 {[%clk 0:01:34.5]} 38. Bxh3 {[%clk 0:01:39]} 38... Bxh3
{[%clk 0:01:35]} 39. Kxh3 {[%clk 0:01:40.6]} 39... Kf6 {[%clk 0:01:35.7]} 40.
Bb6 {[%clk 0:01:39.8]} 40... c4 {[%clk 0:01:36]} 41. Kg4 {[%clk 0:01:41.3]}
41... Ne5+ {[%clk 0:01:29.1]} 42. Kh5 {[%clk 0:01:37.6]} 42... Nd3 {[%clk
0:01:30.2]} 43. Kxh6 {[%clk 0:01:38.4]} 43... Kf5 {[%clk 0:01:31.5]} 44. Bd4
{[%clk 0:01:38.3]} 44... Ke4 {[%clk 0:01:31.7]} 45. Bg7 {[%clk 0:01:39.4]} 45...
Ke3 {[%clk 0:01:28]} 46. Kg6 {[%clk 0:01:39.7]} 46... Kd2 {[%clk 0:01:29.2]} 47.
Kf5 {[%clk 0:01:41]} 47... Kc2 {[%clk 0:01:30.5]} 48. Ke4 {[%clk 0:01:42.7]}
48... Nxb2 {[%clk 0:01:31.6]} 49. Kd5 {[%clk 0:01:44.4]} 49... b4 {[%clk
0:01:29.6]} 50. Kc5 {[%clk 0:01:43.5]} 50... b3 {[%clk 0:01:27.2]} 51. Kb4
{[%clk 0:01:44.7]} 51... c3 {[%clk 0:00:45.2]} 52. Bh6 {[%clk 0:01:14.2]} 52...
Nd3+ {[%clk 0:00:43.6]} 53. Kc4 {[%clk 0:01:15.6]} 53... b2 {[%clk 0:00:44.8]}
0-1

[Event "*** Titled Tuesday 3|2 Blitz"]
[Site "Chess.com"]
[Date "2016.01.05"]
[Round "6"]
[White "ER404"]
[Black "Haridaskesavan"]
[Result "1-0"]
[WhiteElo "2131"]
[BlackElo "2092"]
[TimeControl "180+2"]
[EndTime "12:12:26 PST"]
[Termination "ER404 won by checkmate"]

1. d4 {[%clk 0:03:01.9]} 1... g6 {[%clk 0:03:00.5]} 2. c4 {[%clk 0:02:59.9]}
2... Bg7 {[%clk 0:03:01.6]} 3. g3 {[%clk 0:03:01.5]} 3... e6 {[%clk 0:03:02.6]}
4. Bg2 {[%clk 0:03:02.5]} 4... Ne7 {[%clk 0:03:03.4]} 5. Nc3 {[%clk 0:03:02.1]}
5... d5 {[%clk 0:03:04.6]} 6. Nf3 {[%clk 0:02:59.4]} 6... O-O {[%clk 0:03:04.4]}
7. O-O {[%clk 0:02:55.8]} 7... b6 {[%clk 0:03:05]} 8. Ne5 {[%clk 0:02:52.4]}
8... f6 {[%clk 0:03:01.8]} 9. Ng4 {[%clk 0:02:38.9]} 9... Bb7 {[%clk 0:02:54]}
10. Bh6 {[%clk 0:02:21.7]} 10... Bxh6 {[%clk 0:02:51.3]} 11. Nxh6+ {[%clk
0:02:22.7]} 11... Kg7 {[%clk 0:02:52.4]} 12. Qd2 {[%clk 0:01:55.9]} 12... Nd7
{[%clk 0:02:47.6]} 13. h4 {[%clk 0:01:39.9]} 13... c6 {[%clk 0:02:46.6]} 14. Ng4
{[%clk 0:01:31.5]} 14... Nf5 {[%clk 0:02:40]} 15. e4 {[%clk 0:01:31.5]} 15...
dxe4 {[%clk 0:02:39]} 16. Bxe4 {[%clk 0:01:26.5]} 16... h5 {[%clk 0:02:38.2]}
17. Bxf5 {[%clk 0:01:21.1]} 17... hxg4 {[%clk 0:02:27.2]} 18. Bxg4 {[%clk
0:01:18.3]} 18... f5 {[%clk 0:02:28.5]} 19. Bf3 {[%clk 0:01:19.1]} 19... Nf6
{[%clk 0:02:28.9]} 20. Rfe1 {[%clk 0:01:15.9]} 20... Qd6 {[%clk 0:02:25.6]} 21.
Qe3 {[%clk 0:01:09.6]} 21... Rfe8 {[%clk 0:02:22.6]} 22. Qe5 {[%clk 0:00:58.3]}
22... Rad8 {[%clk 0:02:21.4]} 23. Rad1 {[%clk 0:00:58.7]} 23... Qxe5 {[%clk
0:02:14.3]} 24. dxe5 {[%clk 0:00:54.9]} 24... Nh7 {[%clk 0:02:05.4]} 25. c5
{[%clk 0:00:39.6]} 25... g5 {[%clk 0:02:02.7]} 26. Rd6 {[%clk 0:00:32.2]} 26...
gxh4 {[%clk 0:01:57]} 27. gxh4 {[%clk 0:00:31.2]} 27... bxc5 {[%clk 0:01:47.5]}
28. Na4 {[%clk 0:00:24]} 28... Rxd6 {[%clk 0:01:43]} 29. exd6 {[%clk 0:00:24.9]}
29... Nf6 {[%clk 0:01:32.6]} 30. Nxc5 {[%clk 0:00:25.4]} 30... Bc8 {[%clk
0:01:22.5]} 31. Bxc6 {[%clk 0:00:22.8]} 31... Rd8 {[%clk 0:01:23.2]} 32. d7
{[%clk 0:00:15.9]} 32... Bxd7 {[%clk 0:01:20.6]} 33. Bxd7 {[%clk 0:00:16.5]}
33... Kg6 {[%clk 0:01:15.3]} 34. Nxe6 {[%clk 0:00:12.5]} 34... Rg8 {[%clk
0:01:11.9]} 35. Ba4 {[%clk 0:00:09]} 35... Kh5+ {[%clk 0:01:10.4]} 36. Kf1
{[%clk 0:00:09.9]} 36... Ne4 {[%clk 0:01:10.4]} 37. Nf4+ {[%clk 0:00:09.6]}
37... Kg4 {[%clk 0:01:10.3]} 38. Ng2 {[%clk 0:00:07.9]} 38... Kf3 {[%clk
0:01:07]} 39. Re3+ {[%clk 0:00:08.1]} 39... Kg4 {[%clk 0:01:07.7]} 40. f3+
{[%clk 0:00:08.8]} 40... Kg3 {[%clk 0:01:04.9]} 41. fxe4+ {[%clk 0:00:09.9]}
41... Kh2 {[%clk 0:01:06.1]} 42. Nf4 {[%clk 0:00:08.9]} 42... a5 {[%clk
0:01:05.4]} 43. Rh3# {[%clk 0:00:09.4]} 1-0

[Event "*** Titled Tuesday 3|2 Blitz"]
[Site "Chess.com"]
[Date "2016.01.05"]
[Round "6"]
[White "bugsbunny444"]
[Black "stefanodinn"]
[Result "1-0"]
[WhiteElo "2360"]
[BlackElo "2155"]
[TimeControl "180+2"]
[EndTime "12:12:35 PST"]
[Termination "bugsbunny444 won on time"]

1. Nf3 {[%clk 0:03:01.9]} 1... Nf6 {[%clk 0:02:57.9]} 2. c4 {[%clk 0:03:03]}
2... e6 {[%clk 0:02:56.2]} 3. g3 {[%clk 0:03:03.8]} 3... a6 {[%clk 0:02:55.2]}
4. b3 {[%clk 0:03:03.6]} 4... b5 {[%clk 0:02:55.8]} 5. Nc3 {[%clk 0:03:03.6]}
5... b4 {[%clk 0:02:45.1]} 6. Na4 {[%clk 0:03:04.4]} 6... c5 {[%clk 0:02:39.1]}
7. Bg2 {[%clk 0:03:04.9]} 7... Bb7 {[%clk 0:02:39.7]} 8. O-O {[%clk 0:03:05.9]}
8... Be7 {[%clk 0:02:32.7]} 9. Bb2 {[%clk 0:03:01]} 9... O-O {[%clk 0:02:31.8]}
10. e3 {[%clk 0:02:42.3]} 10... d5 {[%clk 0:02:28.2]} 11. cxd5 {[%clk
0:02:22.6]} 11... exd5 {[%clk 0:02:21.1]} 12. Rc1 {[%clk 0:02:23.7]} 12... Nbd7
{[%clk 0:02:20.9]} 13. d4 {[%clk 0:02:12.1]} 13... c4 {[%clk 0:02:14.4]} 14.
bxc4 {[%clk 0:02:10.1]} 14... dxc4 {[%clk 0:02:14.9]} 15. Rxc4 {[%clk
0:02:10.3]} 15... Bd5 {[%clk 0:02:15.7]} 16. Rc1 {[%clk 0:02:05.5]} 16... Qa5
{[%clk 0:01:59.7]} 17. Nd2 {[%clk 0:01:47.5]} 17... Bxg2 {[%clk 0:01:42.3]} 18.
Kxg2 {[%clk 0:01:49.4]} 18... Qd5+ {[%clk 0:01:42.1]} 19. Qf3 {[%clk 0:01:48]}
19... Qxa2 {[%clk 0:01:39.5]} 20. Ra1 {[%clk 0:01:48.5]} 20... Qe6 {[%clk
0:01:35.4]} 21. e4 {[%clk 0:01:38.7]} 21... a5 {[%clk 0:01:24.1]} 22. d5 {[%clk
0:01:35.3]} 22... Qa6 {[%clk 0:01:23.4]} 23. e5 {[%clk 0:01:23.7]} 23... Ne8
{[%clk 0:01:07.6]} 24. Rfc1 {[%clk 0:01:12.6]} 24... Bg5 {[%clk 0:01:04.3]} 25.
Rc6 {[%clk 0:00:58.6]} 25... Qb5 {[%clk 0:00:34.7]} 26. Nb3 {[%clk 0:00:54.9]}
26... Bh6 {[%clk 0:00:13.5]} 27. Nd4 {[%clk 0:00:32.1]} 27... Qb7 {[%clk
0:00:10.3]} 28. Nf5 {[%clk 0:00:33.4]} 28... Bg5 {[%clk 0:00:06.8]} 29. Qg4
{[%clk 0:00:27.4]} 29... Bd8 {[%clk 0:00:04.6]} 30. Rac1 {[%clk 0:00:05.3]}
30... Kh8 {[%clk 0:00:04.7]} 31. h4 {[%clk 0:00:05.9]} 1-0

[Event "*** Titled Tuesday 3|2 Blitz"]
[Site "Chess.com"]
[Date "2016.01.05"]
[Round "6"]
[White "Cats4Sale"]
[Black "alturas_pacificas"]
[Result "1-0"]
[WhiteElo "2245"]
[BlackElo "2077"]
[TimeControl "180+2"]
[EndTime "12:13:02 PST"]
[Termination "Cats4Sale won by resignation"]

1. e4 {[%clk 0:03:01.9]} 1... c6 {[%clk 0:02:55.2]} 2. Nc3 {[%clk 0:03:01.3]}
2... d5 {[%clk 0:02:49.3]} 3. Nf3 {[%clk 0:03:02.5]} 3... dxe4 {[%clk
0:02:49.7]} 4. Nxe4 {[%clk 0:03:03.4]} 4... Bg4 {[%clk 0:02:45.6]} 5. Bc4 {[%clk
0:03:01.1]} 5... e6 {[%clk 0:02:44]} 6. d4 {[%clk 0:02:30]} 6... Nf6 {[%clk
0:02:43.9]} 7. Bg5 {[%clk 0:02:19.7]} 7... Be7 {[%clk 0:02:40.9]} 8. Bxf6 {[%clk
0:02:19.4]} 8... Bxf6 {[%clk 0:02:40.2]} 9. c3 {[%clk 0:02:20.5]} 9... O-O
{[%clk 0:02:35.8]} 10. h3 {[%clk 0:02:13.6]} 10... Bf5 {[%clk 0:02:34.7]} 11.
Qe2 {[%clk 0:02:11]} 11... Bxe4 {[%clk 0:02:30.9]} 12. Qxe4 {[%clk 0:02:11]}
12... Nd7 {[%clk 0:02:31]} 13. Bd3 {[%clk 0:01:59.6]} 13... g6 {[%clk
0:02:30.4]} 14. h4 {[%clk 0:02:00.9]} 14... Bg7 {[%clk 0:02:22.6]} 15. h5 {[%clk
0:01:41.2]} 15... Nf6 {[%clk 0:02:23.3]} 16. Qe2 {[%clk 0:01:37.3]} 16... Nxh5
{[%clk 0:02:14.7]} 17. Rxh5 {[%clk 0:01:37.4]} 17... gxh5 {[%clk 0:02:16.6]} 18.
O-O-O {[%clk 0:01:36.2]} 18... Qf6 {[%clk 0:02:13]} 19. Rh1 {[%clk 0:01:29.6]}
19... Qh6+ {[%clk 0:02:11.8]} 20. Kb1 {[%clk 0:01:28.7]} 20... f5 {[%clk
0:02:13.3]} 21. Nd2 {[%clk 0:01:14.6]} 21... Rae8 {[%clk 0:01:59]} 22. Rxh5
{[%clk 0:01:14.2]} 22... Qg6 {[%clk 0:02:00.4]} 23. f4 {[%clk 0:00:55.5]} 23...
h6 {[%clk 0:01:46.1]} 24. Rh3 {[%clk 0:00:50.2]} 24... Qg4 {[%clk 0:01:41.1]}
25. Rf3 {[%clk 0:00:44]} 25... Rf6 {[%clk 0:01:39.5]} 26. Nc4 {[%clk 0:00:41.5]}
26... Rg6 {[%clk 0:01:37.1]} 27. Ne3 {[%clk 0:00:42.5]} 27... Qh5 {[%clk
0:01:35]} 28. Nxf5 {[%clk 0:00:33.2]} 28... Qh1+ {[%clk 0:01:19.3]} 29. Rf1
{[%clk 0:00:32.9]} 29... Qxg2 {[%clk 0:01:11.9]} 30. Rf2 {[%clk 0:00:26.2]}
30... Qg1+ {[%clk 0:01:08.2]} 31. Rf1 {[%clk 0:00:27.3]} 31... Qg4 {[%clk
0:01:00.6]} 32. Qe3 {[%clk 0:00:14.6]} 32... Rf8 {[%clk 0:00:11.3]} 33. Ne7+
{[%clk 0:00:14.3]} 33... Kh7 {[%clk 0:00:12.8]} 34. Nxg6 {[%clk 0:00:13.9]}
34... Rf5 {[%clk 0:00:13.8]} 35. Ne7 {[%clk 0:00:09.9]} 35... Qg2 {[%clk
0:00:09.7]} 36. Qxe6 {[%clk 0:00:06.3]} 36... Qh3 {[%clk 0:00:04.4]} 37. Bxf5+
{[%clk 0:00:06.1]} 37... Qxf5+ {[%clk 0:00:04.2]} 38. Qxf5+ {[%clk 0:00:07.1]}
1-0

[Event "*** Titled Tuesday 3|2 Blitz"]
[Site "Chess.com"]
[Date "2016.01.05"]
[Round "6"]
[White "Hikaru"]
[Black "swayamsm"]
[Result "1-0"]
[WhiteElo "2896"]
[BlackElo "2547"]
[TimeControl "180+2"]
[EndTime "12:13:05 PST"]
[Termination "Hikaru won by resignation"]

1. d4 {[%clk 0:03:01.9]} 1... e6 {[%clk 0:02:58.6]} 2. Bf4 {[%clk 0:03:02.5]}
2... b6 {[%clk 0:02:55.8]} 3. Nf3 {[%clk 0:03:03.1]} 3... Bb7 {[%clk 0:02:56.8]}
4. e3 {[%clk 0:03:04.6]} 4... Nf6 {[%clk 0:02:57.2]} 5. Nbd2 {[%clk 0:03:06]}
5... Be7 {[%clk 0:02:57]} 6. h3 {[%clk 0:03:05.1]} 6... O-O {[%clk 0:02:58.4]}
7. Bd3 {[%clk 0:03:06.7]} 7... d6 {[%clk 0:02:58.7]} 8. O-O {[%clk 0:03:05.8]}
8... Nbd7 {[%clk 0:02:40.4]} 9. Bh2 {[%clk 0:03:00.4]} 9... Re8 {[%clk
0:02:38.8]} 10. e4 {[%clk 0:03:01.5]} 10... Bf8 {[%clk 0:02:33.6]} 11. Re1
{[%clk 0:03:00]} 11... e5 {[%clk 0:02:32]} 12. c3 {[%clk 0:03:01.4]} 12... c5
{[%clk 0:02:26.4]} 13. d5 {[%clk 0:03:00]} 13... a6 {[%clk 0:02:25.7]} 14. a4
{[%clk 0:03:01.2]} 14... g6 {[%clk 0:02:22.1]} 15. Qb3 {[%clk 0:02:57.9]} 15...
Bg7 {[%clk 0:02:18.4]} 16. Nc4 {[%clk 0:02:58.3]} 16... Qc7 {[%clk 0:02:19.4]}
17. Nfd2 {[%clk 0:02:57.8]} 17... Nh5 {[%clk 0:02:14.9]} 18. Ne3 {[%clk
0:02:49.8]} 18... Rf8 {[%clk 0:02:12]} 19. Qc2 {[%clk 0:02:43.3]} 19... Kh8
{[%clk 0:02:09.8]} 20. Bf1 {[%clk 0:02:38]} 20... Qd8 {[%clk 0:02:02.9]} 21.
Ndc4 {[%clk 0:02:37.1]} 21... Qc7 {[%clk 0:02:02.3]} 22. Be2 {[%clk 0:02:35.7]}
22... Nf4 {[%clk 0:01:56.7]} 23. Bf1 {[%clk 0:02:37.1]} 23... Nh5 {[%clk
0:01:55.7]} 24. Kh1 {[%clk 0:02:29.5]} 24... Rae8 {[%clk 0:01:51.9]} 25. Rac1
{[%clk 0:02:21.8]} 25... Bh6 {[%clk 0:01:47]} 26. Rcd1 {[%clk 0:02:18.9]} 26...
Kg8 {[%clk 0:01:40.8]} 27. b4 {[%clk 0:02:16.2]} 27... cxb4 {[%clk 0:01:33.4]}
28. cxb4 {[%clk 0:02:18.1]} 28... Rc8 {[%clk 0:01:35]} 29. Qb2 {[%clk
0:02:15.4]} 29... Bg7 {[%clk 0:01:29.2]} 30. Rc1 {[%clk 0:02:14.3]} 30... Qb8
{[%clk 0:01:30.7]} 31. Be2 {[%clk 0:02:12.4]} 31... Nf4 {[%clk 0:01:29.7]} 32.
Bf1 {[%clk 0:02:12.3]} 32... Nh5 {[%clk 0:01:26.2]} 33. Qb1 {[%clk 0:02:10.1]}
33... Bh6 {[%clk 0:01:25.4]} 34. Be2 {[%clk 0:02:10.5]} 34... Nhf6 {[%clk
0:01:17.9]} 35. Bf3 {[%clk 0:02:02.2]} 35... Rfd8 {[%clk 0:01:16.5]} 36. Rc2
{[%clk 0:02:03]} 36... Bg5 {[%clk 0:01:11.4]} 37. g3 {[%clk 0:01:52.8]} 37... h5
{[%clk 0:01:10.4]} 38. h4 {[%clk 0:01:54.2]} 38... Bh6 {[%clk 0:01:10.8]} 39.
Bg2 {[%clk 0:01:55.8]} 39... Kh7 {[%clk 0:01:02.5]} 40. Qb3 {[%clk 0:01:51.1]}
40... Kg8 {[%clk 0:00:57.6]} 41. f3 {[%clk 0:01:51.3]} 41... Rc7 {[%clk
0:00:50.2]} 42. Bg1 {[%clk 0:01:47.6]} 42... Rdc8 {[%clk 0:00:49.3]} 43. Ree2
{[%clk 0:01:47.7]} 43... b5 {[%clk 0:00:47.8]} 44. axb5 {[%clk 0:01:48]} 44...
axb5 {[%clk 0:00:49.1]} 45. Na5 {[%clk 0:01:49.3]} 45... Ba8 {[%clk 0:00:41.2]}
46. Bh3 {[%clk 0:01:49.8]} 46... Kg7 {[%clk 0:00:32.9]} 47. Nd1 {[%clk
0:01:44.8]} 47... Bb7 {[%clk 0:00:29.8]} 48. Nc3 {[%clk 0:01:42.1]} 48... Ba8
{[%clk 0:00:30]} 49. Nd1 {[%clk 0:01:43]} 49... Bb7 {[%clk 0:00:30.9]} 50. Qd3
{[%clk 0:01:39.2]} 50... Rxc2 {[%clk 0:00:29.4]} 51. Rxc2 {[%clk 0:01:40.1]}
51... Rxc2 {[%clk 0:00:31.1]} 52. Qxc2 {[%clk 0:01:42]} 52... Qc8 {[%clk
0:00:33]} 53. Qxc8 {[%clk 0:01:42.5]} 53... Bxc8 {[%clk 0:00:34.9]} 54. Nc3
{[%clk 0:01:40.1]} 54... Ba6 {[%clk 0:00:25]} 55. Bf1 {[%clk 0:01:31.5]} 55...
Bd2 {[%clk 0:00:25.5]} 56. Na2 {[%clk 0:01:32.6]} 56... Ne8 {[%clk 0:00:21.8]}
57. Bf2 {[%clk 0:01:31.5]} 57... Nc7 {[%clk 0:00:23.1]} 58. Nb3 {[%clk
0:01:32.8]} 58... Bh6 {[%clk 0:00:21.9]} 59. Bh3 {[%clk 0:01:34.2]} 59... Nb6
{[%clk 0:00:22.9]} 60. Bxb6 {[%clk 0:01:34.8]} 1-0

[Event "*** Titled Tuesday 3|2 Blitz"]
[Site "Chess.com"]
[Date "2016.01.05"]
[Round "6"]
[White "BellJackson95"]
[Black "DeviatkinAndrey"]
[Result "0-1"]
[WhiteElo "2265"]
[BlackElo "2489"]
[TimeControl "180+2"]
[EndTime "12:13:05 PST"]
[Termination "DeviatkinAndrey won by resignation"]

1. e4 {[%clk 0:02:40.8]} 1... Nf6 {[%clk 0:02:59]} 2. e5 {[%clk 0:02:41.8]} 2...
Nd5 {[%clk 0:02:59.9]} 3. d4 {[%clk 0:02:43.7]} 3... d6 {[%clk 0:03:00.9]} 4. c4
{[%clk 0:02:45.6]} 4... Nb6 {[%clk 0:03:02]} 5. f4 {[%clk 0:02:47.5]} 5... g5
{[%clk 0:03:02.6]} 6. fxg5 {[%clk 0:02:36.6]} 6... dxe5 {[%clk 0:03:03]} 7. c5
{[%clk 0:02:26.3]} 7... Nd5 {[%clk 0:03:00.8]} 8. dxe5 {[%clk 0:02:24.6]} 8...
Bg7 {[%clk 0:03:01.4]} 9. Nf3 {[%clk 0:02:22.9]} 9... Nc6 {[%clk 0:02:58.4]} 10.
Bc4 {[%clk 0:02:13]} 10... Be6 {[%clk 0:02:52.7]} 11. Bb5 {[%clk 0:02:04.7]}
11... O-O {[%clk 0:02:50.3]} 12. Bxc6 {[%clk 0:02:04.9]} 12... bxc6 {[%clk
0:02:51.3]} 13. O-O {[%clk 0:02:06]} 13... Nb4 {[%clk 0:02:32.4]} 14. Nc3 {[%clk
0:01:48.6]} 14... Nd3 {[%clk 0:02:26.2]} 15. Qc2 {[%clk 0:01:31.3]} 15... Nxe5
{[%clk 0:02:23.7]} 16. Bf4 {[%clk 0:01:15.7]} 16... Qd3 {[%clk 0:02:19.3]} 17.
Rac1 {[%clk 0:00:57.5]} 17... Qxc2 {[%clk 0:01:49.6]} 18. Rxc2 {[%clk
0:00:59.4]} 18... Nd3 {[%clk 0:01:51]} 19. Bxc7 {[%clk 0:00:51.3]} 19... Rac8
{[%clk 0:01:50.7]} 20. Bg3 {[%clk 0:00:50.3]} 20... Nxc5 {[%clk 0:01:45.7]} 21.
Be5 {[%clk 0:00:45]} 21... Rfd8 {[%clk 0:01:46.3]} 22. Bxg7 {[%clk 0:00:45.7]}
22... Kxg7 {[%clk 0:01:47.3]} 23. b4 {[%clk 0:00:37.6]} 23... Nd3 {[%clk
0:01:45.8]} 24. a3 {[%clk 0:00:38.1]} 24... c5 {[%clk 0:01:44.1]} 25. b5 {[%clk
0:00:38.4]} 25... c4 {[%clk 0:01:38.1]} 26. Ne2 {[%clk 0:00:33.1]} 26... Rc5
{[%clk 0:01:27.8]} 27. Ned4 {[%clk 0:00:27.3]} 27... Bg4 {[%clk 0:01:24.8]} 28.
h3 {[%clk 0:00:20.3]} 28... Bd7 {[%clk 0:01:18.6]} 29. a4 {[%clk 0:00:20.6]}
29... e5 {[%clk 0:01:18.5]} 30. Ne2 {[%clk 0:00:20.9]} 30... Bf5 {[%clk
0:01:18.6]} 31. Ng3 {[%clk 0:00:20]} 31... Bg6 {[%clk 0:01:18.8]} 32. Nh4 {[%clk
0:00:20.9]} 32... Rd7 {[%clk 0:00:50.3]} 33. Nxg6 {[%clk 0:00:22]} 33... hxg6
{[%clk 0:00:42.5]} 34. Ne4 {[%clk 0:00:23.3]} 34... Rcc7 {[%clk 0:00:40.6]} 35.
Rd1 {[%clk 0:00:20.4]} 35... Rd4 {[%clk 0:00:40.1]} 36. Nf6 {[%clk 0:00:19]}
36... Kf8 {[%clk 0:00:34.9]} 37. Ng4 {[%clk 0:00:14.9]} 37... Nb4 {[%clk
0:00:34.7]} 38. Rcc1 {[%clk 0:00:14]} 38... Rxd1+ {[%clk 0:00:33.4]} 39. Rxd1
{[%clk 0:00:15.9]} 39... c3 {[%clk 0:00:35]} 40. Nf6 {[%clk 0:00:16.8]} 40... c2
{[%clk 0:00:32.4]} 41. Rd8+ {[%clk 0:00:08.9]} 41... Ke7 {[%clk 0:00:33.7]} 42.
Re8+ {[%clk 0:00:10.1]} 42... Kd6 {[%clk 0:00:34.8]} 43. Ne4+ {[%clk 0:00:09.7]}
43... Kd5 {[%clk 0:00:33.7]} 44. Nf6+ {[%clk 0:00:10.7]} 44... Kc4 {[%clk
0:00:34]} 45. Rxe5 {[%clk 0:00:08.6]} 45... c1=Q+ {[%clk 0:00:33.8]} 0-1

[Event "*** Titled Tuesday 3|2 Blitz"]
[Site "Chess.com"]
[Date "2016.01.05"]
[Round "6"]
[White "Cecile_Haussernot"]
[Black "ftorodent"]
[Result "1-0"]
[WhiteElo "2223"]
[BlackElo "2116"]
[TimeControl "180+2"]
[EndTime "12:13:07 PST"]
[Termination "Cecile_Haussernot won by checkmate"]

1. e4 {[%clk 0:03:01.9]} 1... e6 {[%clk 0:03:00]} 2. d4 {[%clk 0:03:02.4]} 2...
d5 {[%clk 0:03:00.2]} 3. Nc3 {[%clk 0:03:03.3]} 3... Bb4 {[%clk 0:03:00.1]} 4.
Ne2 {[%clk 0:03:03.4]} 4... dxe4 {[%clk 0:02:56.6]} 5. a3 {[%clk 0:03:04.3]}
5... Be7 {[%clk 0:02:55.2]} 6. Nxe4 {[%clk 0:03:04.9]} 6... Nf6 {[%clk
0:02:51.7]} 7. N2g3 {[%clk 0:02:59.7]} 7... Nbd7 {[%clk 0:02:42.2]} 8. Bd3
{[%clk 0:02:59.3]} 8... c5 {[%clk 0:02:38.1]} 9. dxc5 {[%clk 0:02:39.9]} 9...
Nxc5 {[%clk 0:02:37.9]} 10. Nxc5 {[%clk 0:02:30.5]} 10... Bxc5 {[%clk
0:02:37.9]} 11. Bg5 {[%clk 0:02:28.6]} 11... Qa5+ {[%clk 0:02:16.3]} 12. Bd2
{[%clk 0:02:03.6]} 12... Qb6 {[%clk 0:02:16.6]} 13. Qf3 {[%clk 0:02:01]} 13...
Bd7 {[%clk 0:02:08.8]} 14. b4 {[%clk 0:01:56.1]} 14... Bd4 {[%clk 0:01:51.9]}
15. c3 {[%clk 0:01:40.4]} 15... Be5 {[%clk 0:01:40.3]} 16. Qe2 {[%clk
0:01:31.7]} 16... Qc7 {[%clk 0:01:33]} 17. O-O {[%clk 0:01:17.3]} 17... O-O
{[%clk 0:01:23.5]} 18. f4 {[%clk 0:01:14.6]} 18... Bxc3 {[%clk 0:01:19.3]} 19.
Rac1 {[%clk 0:01:05.8]} 19... Qb6+ {[%clk 0:01:17.4]} 20. Be3 {[%clk 0:01:04.1]}
20... Bd4 {[%clk 0:01:18.2]} 21. Bxd4 {[%clk 0:01:05.3]} 21... Qxd4+ {[%clk
0:01:18.7]} 22. Kh1 {[%clk 0:01:06.9]} 22... Ba4 {[%clk 0:01:01.6]} 23. f5
{[%clk 0:00:52.8]} 23... e5 {[%clk 0:00:57.9]} 24. Rc4 {[%clk 0:00:53.1]} 24...
Qd6 {[%clk 0:00:52.3]} 25. Ne4 {[%clk 0:00:52.7]} 25... Nxe4 {[%clk 0:00:50.3]}
26. Rxe4 {[%clk 0:00:54.1]} 26... f6 {[%clk 0:00:32.5]} 27. Bc4+ {[%clk
0:00:51.9]} 27... Kh8 {[%clk 0:00:33]} 28. Rh4 {[%clk 0:00:52.2]} 28... h6
{[%clk 0:00:30.9]} 29. b5 {[%clk 0:00:47.4]} 29... Qxa3 {[%clk 0:00:25.2]} 30.
Qg4 {[%clk 0:00:39.4]} 30... Qe3 {[%clk 0:00:23.7]} 31. Rh3 {[%clk 0:00:16.8]}
31... Qd2 {[%clk 0:00:20]} 32. Rd3 {[%clk 0:00:17]} 32... Qg5 {[%clk 0:00:19]}
33. Qf3 {[%clk 0:00:17.9]} 33... Rad8 {[%clk 0:00:18.6]} 34. Ra3 {[%clk
0:00:18.9]} 34... Bc2 {[%clk 0:00:18.1]} 35. Be6 {[%clk 0:00:19.1]} 35... a6
{[%clk 0:00:17.4]} 36. Qf2 {[%clk 0:00:19.7]} 36... Rd2 {[%clk 0:00:16.5]} 37.
Qg1 {[%clk 0:00:17.7]} 37... Be4 {[%clk 0:00:16.7]} 38. Rg3 {[%clk 0:00:19.1]}
38... Qh4 {[%clk 0:00:17.1]} 39. Rf2 {[%clk 0:00:19]} 39... Rxf2 {[%clk
0:00:16.6]} 40. Qxf2 {[%clk 0:00:19.9]} 40... Rd8 {[%clk 0:00:18.3]} 41. h3
{[%clk 0:00:21.1]} 41... axb5 {[%clk 0:00:18.2]} 42. Kh2 {[%clk 0:00:21.8]}
42... b4 {[%clk 0:00:18.9]} 43. Qb6 {[%clk 0:00:22.7]} 43... Qf4 {[%clk
0:00:18.6]} 44. Qxd8+ {[%clk 0:00:23.3]} 44... Kh7 {[%clk 0:00:19.6]} 45. Qg8#
{[%clk 0:00:24.4]} 1-0